Workbook

Sheet Portada

Sheet Balance de Comprobación
C2: Fondo de Jubilaciones y Pensiones del Poder Judicial
C4: Balance de Comprobación
C6: Al 31 de Julio 2018
C9: ACTIVO
C10: Cuentas Corrientes Y De Ahorro | F10: 4472500906
C11: Inversiones En Valores De Emisores Nacionales | F11: 4.975182799e+11
C12: Cuentas Por Cobrar | F12: 216729729.8
C13: Productos Por Cobrar Sobre Inversiones | F13: 9112333952
C14: Préstamos a Afiliados | F14: 16394658.3
C15: Aportes Por Cobrar A Los Trabajadores | F15: 3899726100
C16: Aportes Por Cobrar Al Patrono | F16: 3298482680
C17: Aportes Por Cobrar Al Estado | F17: 263985592.9
C18: Otros Aportes Por Cobrar | F18: 244126268.8
C19: Mobiliario Y Equipo
C20: Equipo De Cómputo
C21: (Depreciación Acumulada)
C22: Costo de Programas Informáticos-Software | F22: 7618670
C23: (Amortización Programas Informáticos) | F23: -7618670
C24: GASTOS
C25: Pérdidas por Negociación de Instrumentos Financieros
C26: Pérdidas Por Fluctuación Cambiaria | F26: 261537106.2
C27: Pérdidas por Variaciones en la Unidad de Referencia | F27: 41620186.98
C28: Gastos Generales | F28: 507901188.1
C29: PASIVO
C30: Retenciones A Pensionados | H30: 716669390.2
C31: Obligaciones Por Liquidar Empleados | H31: 181343.64
C32: Obligaciones Transitorias por Liquidar | H32: 579429815.7
C33: Retención Por Servicios Recibidos
C34: Cotización Seguro De Enfermedad Y Maternidad | H34: 507703928.9
C35: Provisión Para Pensiones En Curso De Pago | H35: 5.144082164e+11
C36: PATRIMONIO
C37: Aportaciones recibidas | H37: 157809894.9
C38: INGRESOS
C39: Productos Sobre Inversiones De Emisores Nacionales | H39: 3002794126
C40: Intereses Sobre Saldos En Cuentas Bancarias | H40: 15074876.41
C41: Por Negociación de Instrumentos Financieros
C42: Ganancias por Fluctuación Cambiaria | H42: 338887556.5
C43: Ganancias por Variaciones en la Unidad de Referencia | H43: 122306738.8
C44: Ingresos sobre Préstamos de Afiliados | H44: 192297.1
C45: Otros Ingresos | H45: 4351919.96
C49: Sumas Iguales | F49: =SUM(F10:F28) -> 5.198536182e+11 | H49: =SUM(H30:H45) -> 5.198536182e+11
D55: Lic. Luis Guillermo Vasquez Ureña | F55: MBA. Maria Antonieta Herrera Charraun
D56: Jefe Subproceso Contabilidad | F56: Jefa Proceso Presupuestario Contable
D62: MBA Miguel Ovares Chavarria
D64: Jefe Macroproceso Financiero Contable
C68: Realizado por:
C69: Licda. Yesenia Flores Chacon
C70: Cordiandora , Subproceso Contabilidad
C72: Observación: Enlace al Manual de Políticas Contables.

Sheet Cambios Act. Netos Disponibles
B1: Fondo de Jubilaciones y Pensiones
B2: Estado de Cambios en los Activos Netos Disponibles
B3: Por el mes terminado al 31/07/2018
B4: (En colones sin céntimos)
D7: SALDO MENSUAL | G7: SALDO ACUMULADO
C8: NOTAS
B9: SALDO INICIAL | E9: 2377782090 | F9: (1) | H9: 2908712973 | I9: (2)
B11: INGRESOS | E11: =D13+D21 -> 3483607515 | H11: =G13+G21 -> 2.405501768e+10
B13: INGRESOS FINANCIEROS | D13: =SUM(D14:D19) -> 3479255595 | G13: =SUM(G14:G19) -> 2.399617581e+10
B14: Productos sobre Inversiones de Emisores Nacionales | C14: Nota 1 | D14: =+'Nota 1'!H18 -> 3002794126 | G14: =+'Nota 1'!H31 -> 2.040962455e+10
B15: Intereses sobre Saldos en Cuentas Corrientes | C15: Nota 2 | D15: =+'Nota 2'!G19 -> 15074876.41 | G15: =+'Nota 2'!G33 -> 22242005.66
B16: Por negociación de instrumentos financieros | G16: 0
B17: Ganancias por Fluctuación Cambiaria | C17: Nota 3 | D17: =+'Nota 3'!D12 -> 338887556.5 | G17: =+'Nota 3'!F12 -> 2287494248
B18: Ganancias por Variaciones en la Unidad de Referencia | C18: Nota 4 | D18: =+'Nota 4'!D9 -> 122306738.8 | G18: =+'Nota 4'!F9 -> 1275089898
B19: Ingresos sobre Préstamos a Afiliados y Pensionados | C19: Nota 5 | D19: =+'Nota 5'!J9 -> 192297.1 | G19: =+'Nota 5'!L9 -> 1725114.28
B21: OTROS INGRESOS | D21: 4351919.96 | G21: =54489952.09+4351919.96 -> 58841872.05
B23: PLAN DE CONTRIBUCIONES | C23: Nota 6 | E23: =SUM(D26:D29) -> 7191022909 | H23: =SUM(G26:G29) -> 4.686164917e+10
B25: RESERVAS EN FORMACION
B26: De los trabajadores | D26: =+'Nota 6'!F9 -> 2958654620 | G26: =+'Nota 6'!H9 -> 1.851209516e+10
B27: Del Patrono | D27: =+'Nota 6'!F10 -> 3277560521 | G27: =+'Nota 6'!H10 -> 2.263195784e+10
B28: Del Estado | D28: =+'Nota 6'!F11 -> 132502965 | G28: =+'Nota 6'!H11 -> 926723949.9
B29: De los Pensionados | D29: =+'Nota 6'!F12+'Nota 6'!F13 -> 822304803.4 | G29: =+'Nota 6'!H12+'Nota 6'!H13 -> 4790872223
B30: Rendimientos Acumulados | D30: 0
B32: UTILIDAD ( PERDIDA DEL EJERCICIO ) | D32: 0
B34: TOTAL ADICIONES | E34: =E11+E23 -> 1.067463042e+10 | H34: =H11+H23 -> 7.091666686e+10
B36: SALIDA DE RECURSOS | E36: =D37 -> 9410995104 | H36: =G37 -> 6.481865276e+10
B37: Por Nuevos Pensionados | C37: Nota 7 | D37: =+'Nota 7'!D12 -> 9410995104 | G37: =+'Nota 7'!F12 -> 6.481865276e+10
B39: GASTOS | E39: =D41+D46 -> 811058481.3 | H39: =G41+G46 -> 6176368140
B41: GASTOS FINANCIEROS | D41: =D43+D44 -> 303157293.2 | G41: =SUM(G43:G44) -> 2700753299
B42: Pérdida por Negociación de Inst. Financ. | D42: 0 | G42: 0
B43: Pérdida por Fluctuación Cambiaria | C43: Nota 8 | D43: =+'Nota 8'!D12 -> 261537106.2 | G43: =+'Nota 8'!F12 -> 2435159718
B44: Pérdida por Variaciones en la Unidad de Referencia | C44: Nota 9 | D44: =+'Nota 9'!D10 -> 41620186.98 | G44: =+'Nota 9'!F10 -> 265593581.6
B46: GASTOS GENERALES | C46: Nota 10 | D46: =+'Nota 10'!D13 -> 507901188.1 | G46: =+'Nota 10'!F13 -> 3475614840
B48: TOTAL DE DEDUCCIONES | E48: =E36+E39 -> 1.022205359e+10 | H48: =H36+H39 -> 7.09950209e+10
B50: ACTIVOS NETOS DISPONIBLES PARA BENEFICIOS
B51: FUTUROS AL FINAL DEL PERIODO (3) | E51: =E9+E34-E48 -> 2830358928 | H51: =H9+H34-H48 -> 2830358928
B54: Observaciones:
B55: (1) Saldo inicial mensual: Corresponde al total de activos disponibles para beneficios futuros al final del mes de junio 2018.
B56: (2) Saldo acumulado: Pertenece al total de activos disponibles de beneficios futuros al final del año anterior (Diciembre 2017).
B57: (3) Activos Netos Disponibles para Beneficios Futuros al Final del Periodo: Corresponde a la suma del saldo inicial mas el total de adiciones, menos el total de deducciones.
B80: Observación: Enlace al Manual de Políticas Contables.

Sheet Act. Netos Dispon. Beneficios
B2: Fondo de Jubilaciones y Pensiones del Poder Judicial
B3: Estado de Activos Netos Disponibles para Beneficios
B4: AL 31/07/2018
B5: (En colones sin céntimos)
C6: NOTAS
B7: DISPONIBILIDADES | E7: =D8 -> 4472500906
B8: Cuentas Corrientes y de Ahorro | C8: Nota 11 | D8: =+'Nota 11'!D20 -> 4472500906
B10: INVERSIONES EN VALORES | E10: =D12 -> 4.975182799e+11
B11: EN CURSO DE PAGO
B12: Inversiones en Valores de Emisores Nacionales | C12: Nota 12 | D12: =+'Nota 12'!D25 -> 4.975182799e+11
B14: CUENTAS Y PRODUCTOS POR COBRAR SOBRE INVERSIONES | E14: =SUM(D16:D17) -> 9329063682
B15: PROVISION PARA PENSIONES EN CURSO DE PAGO
B16: Cuentas Por Cobrar | C16: Nota 13 | D16: =+'Nota 13'!D13 -> 216729729.8
B17: Productos Por Cobrar Sobre Inversiones De Emisores Nacionales | C17: Nota 14 | D17: =+'Nota 14'!D18 -> 9112333952
B19: PRESTAMOS A AFILIADOS Y PENSIONADOS | E19: =D20 -> 16394658.3
B20: Préstamos por Cobrar | C20: Nota 15 | D20: =+'Nota 15'!D21 -> 16394658.3
B21: Productos por Cobrar sobre Préstamos | C21: Nota 15 | D21: 0
B23: APORTES POR COBRAR | E23: =SUM(D24:D27) -> 7706320642
B24: Aportes Por Cobrar A Los Trabajadores | C24: Nota 16 | D24: =+'Nota 16'!J9 -> 3899726100
B25: Aportes Por Cobrar Al Patrono | C25: Nota 16 | D25: =+'Nota 16'!J13 -> 3298482680
B26: Aportes Por Cobrar Al Estado | C26: Nota 16 | D26: =+'Nota 16'!J16 -> 263985592.9
B27: Otros Aportes Por Cobrar | C27: Nota 16 | D27: =+'Nota 16'!J19 -> 244126268.8
B29: PROPIEDAD, PLANTA Y EQUIPO | E29: 0
B30: Mobiliario y Equipo | D30: 0
B31: Equipo de Cómputo | D31: 0
B32: (Depreciación Acumulada) | D32: 0
B34: OTROS ACTIVOS | E34: 0
B35: Intangibles | C35: Nota 17 | D35: 0
B37: ACTIVO TOTAL | E37: =E7+E10+E14+E19+E23 -> 5.190425598e+11
B39: CUENTAS POR PAGAR | E39: =SUM(D40:D42) -> 1296280549
B40: Retenciones A Pensionados | C40: Nota 18 | D40: =+'Nota 18'!E14 -> 716669390.2
B41: Obligaciones Por Liquidar Empleados y Exempleados | C41: Nota 19 | D41: =+'Nota 19'!D16 -> 181343.59
B42: Obligaciones Transitorias por Liquidar | C42: Nota 20 | D42: =+'Nota 20'!D23 -> 579429815.7
B44: PROVISIONES | E44: =D45 -> 507703928.9
B45: Cotización Seguro De Enfermedad y Maternidad | C45: Nota 21 | D45: =+'Nota 21'!F9 -> 507703928.9
B47: PROVISIONES PARA PENSIONES EN CURSO DE PAGO | C47: Nota 22 | E47: =+'Nota 22'!J13 -> 5.144082164e+11
B49: PASIVO TOTAL | E49: =E47+E44+E39 -> 5.162122008e+11
B51: ACTIVOS NETOS DISPONIBLES PARA BENEFICIOS FUTUROS (1) | E51: =+'Cambios Act. Netos Disponibles'!E51 -> 2830358928
B53: CUENTAS DE ORDEN | C53: Nota 23 | E53: 289645067.5
B55: Observaciones:
B56: (1) Activos Netos Disponibles para Beneficios Futuros al Final del Periodo: Corresponde al total de activo menos el total de pasivo.
B83: Observación: Enlace al Manual de Políticas Contables.

Sheet Nota 1
B2: Nota 1:
B3: Productos sobre Inversiones de Emisores Nacionales
B5: al 31 de Julio de 2018
B7: MENSUAL
B9: PRODUCTOS SOBRE INVERSIONES DE VALORES NACIONALES | D9: COLONES | F9: DOLARES | H9: TOTAL
B11: Intereses devengados | D11: 2834339577 | F11: 199479885.8 | H11: 3033819462
B12: Amortización de descuento | D12: 4807746.81 | F12: 3326518.43 | H12: 8134265.24
B13: Comisión devengada | D13: -439442.26 | F13: -54389.26 | H13: -493831.52
B14: Amortización de prima | D14: -137109527.5 | F14: -990524.73 | H14: -138100052.2
B15: Otros intereses devengados | D15: 0 | F15: 0 | H15: 0
B16: Ingresos por Dividendos | D16: 0 | F16: 99434282.07 | H16: 99434282.07
B18: TOTAL DE PRODUC. SOBRE INVERS. DE VALORES NACIONALES. | D18: =SUM(D11:D16) -> 2701598354 | F18: =SUM(F11:F17) -> 301195772.3 | H18: =SUM(H11:H17) -> 3002794126
B20: ACUMULADO
B22: PRODUCTOS SOBRE INVERSIONES DE VALORES NACIONALES | D22: COLONES | F22: DOLARES | H22: TOTAL
B24: Intereses devengados | D24: 1.946621205e+10 | F24: 1317122052 | H24: 2.07833341e+10
B25: Amortización de descuento | D25: 26494261.07 | F25: 8474997.56 | H25: 34969258.63
B26: Comisión devengada | D26: -2364225.53 | F26: -535542.22 | H26: -2899767.75
B27: Amortización de prima | D27: -1045788947 | F27: -7270310.6 | H27: -1053059258
B28: Otros intereses devengados | D28: 0 | F28: 0 | H28: 0
B29: Ingresos por Dividendos | D29: 0 | F29: 647280213.5 | H29: 647280213.5
B31: TOTAL DE PRODUC. SOBRE INVERS. DE VALORES NACIONALES. | D31: =SUM(D24:D30) -> 1.844455314e+10 | F31: =SUM(F24:F30) -> 1965071410 | H31: =SUM(H24:H30) -> 2.040962455e+10

Sheet Nota 2
C2: Nota 2:
C3: Intereses sobre Saldos en Cuentas Corrientes
C5: =+'Nota 1'!B5 -> al 31 de Julio de 2018
C8: Mensual
C10: Cuenta Corriente | E10: Banco | G10: Intereses Ganados en el Periodo
C12: 1234-0 | E12: Banco Nacional de Costa Rica | G12: 1560.1
C13: 229-32-9 | E13: Banco de Costa Rica | G13: 14892252.77
C14: 18-1019277 | E14: Banco Popular y de Desarrollo Comunal | G14: 0
C15: 1914-1 $ | E15: Banco Popular y de Desarrollo Comunal | G15: 0
C16: 112247-9 $ | E16: Banco de Costa Rica | G16: 181063.54
C17: 174961-7 | E17: Banco de Costa Rica
C19: Total | G19: =SUM(G12:G18) -> 15074876.41
C22: Acumulado
C24: Cuenta Corriente | E24: Banco | G24: Intereses Ganados en el Periodo
C26: 1234-0 | E26: Banco Nacional de Costa Rica | G26: 3207.64
C27: 229-32-9 | E27: Banco de Costa Rica | G27: 21600124.41
C28: 18-1019277 | E28: Banco Popular y de Desarrollo Comunal | G28: 6949.79
C29: 1914-1 $ | E29: Banco Popular y de Desarrollo Comunal
C30: 112247-9 $ | E30: Banco de Costa Rica | G30: 631723.82
C31: 174961-7 | E31: Banco de Costa Rica
C33: Total | G33: =SUM(G26:G32) -> 22242005.66
L48: 0

Sheet Nota 3
B2: Nota 3:
B3: Ganancias por Fluctuación Cambiaria
B5: =+'Nota 1'!$B$5:$H$5 -> al 31 de Julio de 2018
B7: Cuenta | D7: Mes | F7: Acumulado
B8: Por Cuentas Corrientes | D8: 72557.22 | F8: 15566051.97
B9: En Inversiones En Valores De Emisores Nacionales $ | D9: 336082219.7 | F9: 2250962667
B10: Por Cuentas Por Cobrar | D10: 330924.58 | F10: 800872.92
B11: Por Productos Por Cobrar Sobre Inversion | D11: 2401854.97 | F11: 20164656.32
B12: Ganancia Total Generada | D12: =SUM(D8:D11) -> 338887556.5 | F12: =SUM(F8:F11) -> 2287494248

Sheet Nota 4
B2: Nota 4:
B3: Ganancias por Variaciones en la Unidad de Referencia
B5: =+'Nota 1'!$B$5:$H$5 -> al 31 de Julio de 2018
B7: Cuenta | D7: Mes | F7: Acumulado
B8: En valores emitidos por el Gobierno | D8: 122306738.8 | F8: 1275089898
B9: Ganancia Total Generada | D9: =SUM(D8:D8) -> 122306738.8 | F9: =SUM(F8:F8) -> 1275089898

Sheet Nota 5
B2: Nota 5:
B3: Ingresos sobre Préstamos a Afiliados y Pensionados
B5: =+'Nota 1'!$B$5:$H$5 -> al 31 de Julio de 2018
B7: Total de Préstamo | D7: Entidad | F7: Plazo | H7: Tasa actual | J7: Ingreso Por Interes mensual | L7: Ingreso Por Interes Acumulado
B9: 1000000000 | D9: ANEJUD | F9: 10 años | H9: 0.0808 | J9: 192297.1 | L9: 1725114.28

Sheet Nota 6
B2: Nota 6:
B3: PLAN DE CONTRIBUCIONES
B5: =++'Nota 1'!$B$5:$H$5 -> al 31 de Julio de 2018
B7: Aportes | D7: Porcentajes | F7: Mensual | H7: Acumulado
B9: Trabajadores | D9: 11% y 13% | F9: 2958654620 | H9: 1.851209516e+10
B10: Patrono | D10: 0.1436 | F10: 3277560521 | H10: 2.263195784e+10
B11: Estado | D11: 0.0058 | F11: 132502965 | H11: 926723949.9
B12: Jubilados y Pensionados | D12: 11% y 13% | F12: 753696007.4 | H12: 4633062328
B13: Contribución Solidaria | D13: - | F13: 68608795.97 | H13: 157809894.9
B15: Total Aportes | F15: =SUM(F9:F13) -> 7191022909 | H15: =SUM(H9:H13) -> 4.686164917e+10
B18: Notas:
B20: 1-) Mediante Acuerdo del Consejo Superior N° 2-2018, art I, se autoriza a disminuir el porcentaje del aporte estatal, a partir del mes de enero 2018 pasando de 1.24% a 0.58%, lo anterior por cuanto el Ministerio de Hacienda recortó del Presupuesto del Poder Judicial la suma de ¢1,200,000,000 (Mil doscientos millones de colones).
B22: 2-) Mediante Acuerdo del Consejo Superior, sesión N°26-2018 del 5/04/2018, en su punto tercer indica: "[...] modificar el acuerdo tomado en sesión N°2-18 del 11/01/2018, art I, por lo que deberá la Dirección de Gestión Humana registrar como porcentaje del aporte estatal al Fondo de Jubilaciones y Pensiones el definido por la Caja Costarricense del Seguro Social (CCSS)". Según lo definido en este acuerdo el porcentaje regresa al 1.24% establecido en Decreto Ejecutivo N° 39202-MTSS-H en su artículo 2, publicado en la Gaceta N° 170 del martes 01 de setiembre del 2015.
B24: 3-) Mediante la publicación de la Ley 9544, que reforma el Regimen de Jubilaciones y Pensiones del Poder Judicial y Acuerdo del Consejo Superior Sesión N°46-18 celebrada el 22/05/2018, art VI, se solicita realizar a partir de esta fecha el incremento al aporte obrero del 11% al 13%, así como el rebajo de la contribución especial, solidaria y redistributiva a las personas jubiladas y pensionadas, conforme el articulo 236 de esta Ley.
B26: 4-) La Dirección de Gestión Humana mediante oficios 006-CP-DGH-2018, 009-CP-DGH-2018, 011-CP-DGH-2018, 012-C-DGH-2018, 0017-CP-DGH-2018 y 0018-CP-DGH-2018 remiten la información equivalente al 0.66% para los meses de Enero a Julio del año 2018, con el fin de revelar el detalle de la cuenta por cobrar por la diferencia porcentual hasta que se modifiquen los parametros a nivel de sistemas:
D29: Mes | F29: Monto
D30: Enero | F30: 120402999.9
D31: Febrero | F31: 140520637.7
D32: Marzo | F32: 136148891.6
D33: Abril* | F33: 135077110.6
D34: Mayo | F34: 137614704.2
D35: Junio | F35: 137617040.8
D36: Julio | F36: 137959636.9
D37: Total | F37: =SUM(F30:F36) -> 945341021.7
B38: Nota: Para el mes de abril 2018 mediante oficio 011-CP-DGH-2018, la DGH comunica el monto correspondiente al 0.66% de aporte estatal indicando una suma de ¢255,257,113.99, sin embargo, mediante correo electrónico del 29/05/2018, realizan una rectificación del monto por la suma de ¢135,077,110.64, dado lo anterior a partir del mes de mayo 2018, se muestra la suma correcta para el mes de Abril 2018.

Sheet Nota 7
B2: Nota 7:
B3: SALIDA DE RECURSOS
B5: =+'Nota 6'!B5:H5 -> al 31 de Julio de 2018
D7: Mensual | F7: Acumulado
B9: Aportes | D9: 7122414113 | F9: 4.670383928e+10
B10: Rendimientos | D10: 2288580991 | F10: 1.811481348e+10
B12: TOTAL | D12: =SUM(D9:D10) -> 9410995104 | F12: =SUM(F9:F10) -> 6.481865276e+10
B14: Observación: Corresponde al traslado de todos los recursos de la cuenta patrimonial "Reserva en formación" a la cuenta "Provisión para pensiones en curso de pago"

Sheet Nota 8
B2: Nota 8:
B3: Pérdida por Fluctuación Cambiaria
B5: =+'Nota 7'!B5:F5 -> al 31 de Julio de 2018
B7: Cuenta | D7: Mes | F7: Acumulado
B8: Por Cuentas Corrientes | D8: 1524490.45 | F8: 17538719.69
B9: En Inversiones En Valores De Emisores Nacionales $ | D9: 258157029 | F9: 2393183050
B10: Por Cuentas Por Cobrar | D10: 7273.13 | F10: 72654.64
B11: Por Productos Por Cobrar Sobre Inversion | D11: 1848313.61 | F11: 24365293.85
B12: Pérdida Total Generada | D12: =SUM(D8:D11) -> 261537106.2 | F12: =SUM(F8:F11) -> 2435159718

Sheet Nota 9
B2: Nota 9:
B4: Pérdida por Variaciones en la Unidad de Referencia
B6: =+'Nota 8'!B5:F5 -> al 31 de Julio de 2018
B8: Cuenta | D8: Mes | F8: Acumulado
B9: En valores emitidos por el Gobierno | D9: 41620186.98 | F9: 265593581.6
B10: Pérdida Total Generada | D10: =SUM(D9:D9) -> 41620186.98 | F10: =SUM(F9:F9) -> 265593581.6

Sheet Nota 10
B2: Nota 10:
B3: GASTOS GENERALES
B5: =+'Nota 9'!B6:F6 -> al 31 de Julio de 2018
B7: GASTOS GENERALES | D7: MENSUAL | F7: ACUMULADO
B9: Servicios Bancarios | D9: 106768.57 | F9: 494468.06
B10: Cotización Seguro De Enfermedad y Maternidad | D10: 507697957.4 | F10: 3474871158
B11: Gastos Diversos | D11: 96462.11 | F11: 249213.98
B13: TOTAL DE GASTOS GENERALES | D13: =SUM(D9:D12) -> 507901188.1 | F13: =SUM(F9:F12) -> 3475614840

Sheet Nota 11
B2: Nota 11:
B3: Cuentas Corrientes y de Ahorro
B5: =+'Nota 10'!B5:F5 -> al 31 de Julio de 2018
B7: CUENTAS CORRIENTES Y DE AHORRO PROV. PARA PENSIONES EN CURSO DE PAGO | D7: TOTAL ¢ | F7: TIPO DE CAMBIO | H7: TOTAL $
B9: * Banco Nacional de C.R. Cta 1234-0 | D9: -5285999.95
B10: Banco de Costa Rica Cta 229-32-9 | D10: 4411858656
B11: Banco de Costa Rica Cta 174961-7 | D11: 99000
B12: Banco Popular Cta 1019277-0 | D12: 49561385.26
B13: Banco Nacional de C.R. 2413-8 | D13: 0
B14: Banco de Costa Rica 349803-4 | D14: 90.02
B15: Banco de Costa Rica 349824-7 | D15: 41
B16: Banco de Costa Rica Cta. 112247-9 $ | D16: 16743574.63 | F16: 567.94 | H16: =+D16/F16 -> 29481.23856
B17: Banco Nacional de C.R. Cta 601227-7 $ | D17: 82133.27 | F17: =F16 -> 567.94 | H17: =+D17/F17 -> 144.6161038
B18: ** Banco Popular Cta 1914-1 $ | D18: -557973.97 | F18: =F17 -> 567.94 | H18: =+D18/F18 -> -982.4523189
B20: TOTAL EN CUENTAS CORRIENTES Y DE AHORRO | D20: =SUM(D9:D18) -> 4472500906 | H20: =SUM(H16:H18) -> 28643.40235
B23: * Con respecto al saldo de la cuenta N° 1234-0, los documentos 914-1313983-33830-1195594-2660262-312996-2660262 al cierre de mes se encontraban pendientes de asociar, sin embargo en el mes de agosto se asociaron documentos y se coordina con los encargados de las áreas de Ingresos e Inversiones para que realicen esta labor.
B25: ** Con respecto al saldo de la cuenta N° 1914-1, los documentos 0002629125-20180522/C36-FT18141V4Z0D/C53 y la revaloración al cierre de mes se encontraban pendientes de asociar, sin embargo en el mes de agosto se asociaron documentos y no se encuentran pendientes del asociar documentos de julio.

Sheet Nota 12
B2: Nota 12:
B3: Inversiones en Valores de Emisores Nacionales
B5: =+'Nota 11'!B5:H5 -> al 31 de Julio de 2018
B7: COLONES
B9: Inv. Valor Facial | D9: 4.285274917e+11
B10: Primas | D10: 9871746491
B11: Descuentos | D11: -396385016.8
B13: SALDO INVERSIONES EN COLONES | D13: =SUM(D9:D11) -> 4.380028532e+11
B16: SALDO DÓLARES | F16: TIPO DE CAMBIO | H16: SALDO EN COLONES
B18: Inv. Valor Facial | D18: 71311936.28 | F18: 567.94 | H18: 4.050090109e+10
B19: Primas | D19: 80451.45978 | F19: 567.94 | H19: 45691602.07
B20: Descuentos | D20: -342828.28 | F20: 567.94 | H20: -194705893.3
B21: Títulos de Participación | D21: 33742190.9 | F21: 567.94 | H21: 1.91635399e+10
B23: SALDO INVERSIONES EN DÓLARES (COLONIZADO) | D23: =SUM(D18:D21) -> 104791750.4 | H23: =SUM(H18:H21) -> 5.95154267e+10
B25: TOTAL GENERAL: | D25: =+D13+H23 -> 4.975182799e+11

Sheet Nota 13
B2: Nota 13:
B3: CUENTAS POR COBRAR
B5: =+'Nota 12'!B5:H5 -> al 31 de Julio de 2018
B7: Cuentas por Cobrar
B9: Títulos vencidos pendientes de cobro | D9: 8193203.96
B10: Impuesto Sobre La Renta Por Cobrar (1) | D10: 208498224.1
B11: Sumas Pend. De cobrar (2) | D11: 38301.71
B13: Saldo: | D13: =D9+D10+D11 -> 216729729.8
B15: 1-) Corresponden aquellas sumas que debe recuperar el Régimen por concepto de exención del 8% del impuesto sobre la renta de los títulos valores, que por su situación particular, no es posible cobrarlos inmediatamente con el vencimiento de los cupones
B18: 2-) En esta cuenta se registrará las cuentas por cobrar, generadas de la captación de inversiones, por comisiones pagadas de más, intereses moratorios u otros.

Sheet Nota 14
B2: Nota 14:
B4: Productos por cobrar sobre Inversiones de Emisores Nacionales
B6: =+'Nota 13'!B5:D5 -> al 31 de Julio de 2018
B8: Productos por cobrar sobre Inversiones
B10: Sobre Valores Emitidos Por El Banco Central | D10: 449526493.2
B11: Sobre Valores Emitidos Por El Gobierno | D11: 7581300065
B12: Sobre Valor. Emit. otras Ent Pub. no Fininancieras | D12: 230952009.6
B13: Sobre Valores Emitidos Por Bancos Comerciales | D13: 570559039.8
B14: Sobre Val. Emit. Bcos. Pub. Ley. Especiales | D14: 106365621
B15: Sobre Val. Emit. Bcos. Bancos Privados | D15: 90904731.51
B16: Dividendos por Cobrar | D16: 82725991.54
B18: Saldo | D18: =SUM(D10:D17) -> 9112333952

Sheet Nota 15
B2: Nota 15:
B3: Préstamos por Cobrar
B5: =+'Nota 14'!B6:D6 -> al 31 de Julio de 2018
B7: SUMAS GIRADAS A: | D7: MONTO
B9: ANEJUD: Débito No. 2863 de la Cta 174961-7 BCR el 9 de diciembre de 2008 (Autorizado por la Dirección Ejecutiva oficio No.9488-DE-08) | D9: 166244019.2
B10: ANEJUD: Débito No. 20806860 de la Cta 1234-0 BNCR el 9 de diciembre de 2008 (Autorizado por la Dirección Ejecutiva oficio No.9488-DE-08) | D10: 410921974.9
B11: ANEJUD: Débito No. 379 de la Cta 229-32-9 BCR el 10 de febrero de 2009 (Autorizado por la Dirección Ejecutiva con oficio No. 1123-DE-2009 ). El desembolso autorizado por esa Dirección Ejecutiva es por ¢422.834.006 de los cuales y a solicitud de ANEJUD con oficio del 10 de febrero de 2009 a Don Walter Jiménez Sorio, Jefe del Departamento Financiero Contable en su oportunidad, se deduce la primera cuota de intereses cancelada por adelantado de ¢6.876.239. El total girado con el débito No. 379 es ¢415.957.767. | D11: 422834006
B13: TOTAL DE LOS DESEMBOLSOS | D13: =SUM(D9:D11) -> 1000000000
B15: Menos. Amortizaciones | D15: 983605341.7
B17: Saldo del préstamo | D17: =+D13-D15 -> 16394658.3
B19: Mas: Intereses por cobrar
B21: TOTAL POR COBRAR | D21: =+D17+D19 -> 16394658.3

Sheet Nota 16
B2: Nota 16:
B3: APORTES POR COBRAR
B5: =+'Nota 15'!B5:D5 -> al 31 de Julio de 2018
B7: Nota | D7: Sub-nota | F7: APORTES POR COBRAR | H7: Detalle | J7: Total
B9: 16.1 | F9: Aporte por cobrar a los trabajadores | J9: =SUM(H10:H12) -> 3899726100
D10: 16.1.1 | F10: Aporte Ordinario | H10: 128620825.7
D11: 16.1.2 | F11: Aporte Ordinario S .Escolar | H11: 1410954949
D12: 16.1.3 | F12: Aporte Reconocimiento de tiempo servido | H12: 2360150325
B13: 16.2 | F13: Aportes por cobrar al Patrono | J13: =SUM(H14:H15) -> 3298482680
D14: 16.2.1 | F14: Aportes Por Cobrar Poder Jud.-Patrono | H14: 1557627123
D15: 16.2.2 | F15: Apor. x Cobrar Poder Jud.-Patrono (S.E) | H15: 1740855557
B16: 16.3 | F16: Aportes por cobrar al Estado | J16: =SUM(H17:H18) -> 263985592.9
D17: 16.3.1 | F17: Aportes Por Cobrar Poder Jud.-Estado | H17: 62986168.51
D18: 16.3.2 | F18: Apor. x Cobrar Poder Jud.-Estado (S.E) | H18: 200999424.4
B19: 16.4 | F19: Otros aportes por cobrar | J19: =SUM(H20:H23) -> 244126268.8
D20: 16.4.1 | F20: Sumas canceladas de más a Jubilados y Pensionados | H20: 138962972.3
D21: 16.4.2 | F21: Aportes Reconocimiento de Tiempo Servido Fuera del Poder Judicial (RTSFPJ) | H21: 5729396.61
D22: 16.4.3 | F22: Otros aportes por cobrar entidades deductoras | H22: 1809691.74
D23: 16.4.4 | F23: Sumas canceladas de más a Jubilados y Pensionados (Aguinaldo) | H23: 97624208.21
F25: TOTAL | J25: =SUM(J9:J23) -> 7706320642

Sheet Nota 17
B2: Nota 17:
B3: INTANGIBLES
B5: =+'Nota 16'!B5:J5 -> al 31 de Julio de 2018
B7: Detalle | D7: Monto | F7: Amortización | H7: Total
B8: Sistema inversiones "Internet Systems Development Insyde S.A" | D8: 7618670 | F8: -7618670 | H8: 0
B11: Nota:
B12: Corresponde al registro de la compra del Sistema de Inversiones a la empresa Internet Systems Development Insyde S.A. con un valor de $14,750.00, valorado al tipo de cambio de la fecha de adquisición del activo (15 de agosto de 2007) de ¢516.52, para un total de ¢7,618,670. A dicho monto se descuenta la amortización acumulada al cierre del presente mes que asciende a ¢7,618,670 para un activo neto de ¢0.00. La vida útil del sistema en mención es de 5 años y considerando que fue registrado en setiembre del 2007 se encuentra depreciado en su totalidad, no obstante, a la fecha de este informe se encuentra en funcionamiento. En el periodo comprendido entre el 15 de julio a 12 de diciembre del 2011 la Dirección de Tecnología de Información realizó mejoras al sistema de Inversiones por la suma de ¢1.673.895. Lo anterior, de acuerdo con la información suministrada por la Dirección de Tecnología de la Información, mediante correo electrónico del 27 de abril del 2017 y oficio 1635-DTI-2017, dicho monto se encuentra registrado actualmente en los registros contables del Poder Judicial por igual suma. Con oficio 425-SC-2015 de 26 de agosto del 2015, se realizó la consulta a la Superintendencia de Pensiones (SUPEN) sobre la forma de registro contable de la información suministrada por la Dirección de Tecnología de Información, en virtud de que, en el Manual de Cuentas para el Régimen de Capitalización Colectiva emitido por dicha Superintendencia, no se observa alguna cuenta contable para el registro de la reevaluación de activos intangibles. La SUPEN ante la consulta realizada, indicó lo siguiente: “[…] conforme lo establecido en las Normas internacionales de Información Financiera (NIIF), se le comunica que no existe forma alguna de atribuir costo a un activo intangible luego del final de su vida útil: aunque esté en operación y generando beneficios, su valor en libros deberá seguir siendo cero…”

Sheet Nota 18
C2: Nota 18:
C4: Retenciones A Pensionados
C6: =+'Nota 17'!B5 -> al 31 de Julio de 2018
C8: RETENCIONES A JUBILADOS Y PENSIONADOS | E8: TOTAL
C10: Impuesto Sobre La Renta | E10: 426556269.6
C11: Caja Costarricense Seguro Social | E11: 290113120.6
C12: Otras retenciones | E12: 0
C14: TOTAL DE RETENCIONES A JUBILADOS Y PENSIONADOS | E14: =SUM(E10:E13) -> 716669390.2

Sheet Nota 19
A2: Nota 19:
B4: Obligaciones Por Liquidar Empleados y Exempleados
B6: =+'Nota 18'!C6 -> al 31 de Julio de 2018
B9: OBLIGACIONES POR LIQUIDAR EMPL. Y EXEMPL. | D9: TOTAL
B11: VCLO | D11: 64093.76
B12: ASP | D12: 88531.36
B13: EBZ | D13: 18439.69
B14: WQS | D14: 10278.78
B16: OBLIGACIONES POR LIQUIDAR EMPL. Y EXEMPL. | D16: =SUM(D11:D15) -> 181343.59

Sheet Nota 20
B2: Nota 20:
B4: Obligaciones Transitorias por Liquidar
B6: =+'Nota 19'!B6:D6 -> al 31 de Julio de 2018
B8: Obligaciones Transitorias por Liquidar | D8: Saldo
B10: Benef. no retirados y por fallecimiento | D10: 34539970.96
B11: Sumas en transito por aclarar | D11: 2822005
B12: Instituciones Financieras -Banco de Costa Rica | D12: 49693.56
B13: Institucione Financieras Banco Popular ¢ | D13: 498197.34
B14: *Intituciones Gubernamentales-Poder Judicial-¢ | D14: 219712457.1
B15: Instituciones Gubernamentales-Caja Costarricense Seguro Social | D15: 3796451.36
B16: Anejud | D16: 858549.61
B17: Otros-Errores Bancarios | D17: 48619662.38
B18: Transitoria de deducción | D18: 1242679.87
B19: Aporte Junta Administradora FJP | D19: 200840562.4
B20: **Aporte Junta Administradora FJP - Jubilados y Pensionados | D20: 66217335.28
B21: Instituciones Financieras-Banco Popular $ | D21: 232250.73
B23: Total Obligaciones Transitorias por Liquidar | D23: =SUM(D10:D21) -> 579429815.7
B25: * Nota 1: Mediante asiento 2018JULFJ.04.01-04 se realiza el registro de los ¢219,712,457,14 correspondientes al monto del aporte patronal que se debe devolver al Poder Judicial, de acuerdo a lo indicado por Consejo Superior en sesión N° 56-18 celebrada el 21 de julio de 2018, artículo XXIII.
B30: ** Nota 2: Mediante la publicación de la Ley 9544, se aplica la reforma al capítulo IV, art 239, referente a la comisión por gastos administrativos, la cua indica: " Surgirá de deducir un cinco por mil de los sueldos de que devengen los servidores judicial, así como de las jubilaciones y las pensiones a cargo del Fondo. Con estos recursos se pagarán las dietas de los miembros de la Junta Administradora, los salarios de su personal y, en general, sus gastos administrativos...", dicho aporte dio inicio a partir del 22/05/2018.

Sheet Nota 21
B2: Nota 21:
B4: Cotización Seguro De Enfermedad y Maternidad
B6: =+'Nota 20'!B6:D6 -> al 31 de Julio de 2018
B8: Entidad | D8: Porcentaje | F8: Monto
B9: Caja Costarricense del Seguro Social | D9: 0.0875 | F9: 507703928.9

Sheet Nota 22
B2: Nota 22:
B3: PROVISIONES PARA PENSIONES EN CURSO DE PAGO
B5: =+'Nota 21'!B6:F6 -> al 31 de Julio de 2018
B7: Nota | D7: Sub-nota | F7: APORTES POR COBRAR | H7: Detalle | J7: Total
B9: 22.1 | F9: Recursos recibido de reservas en formación | J9: 9.978450912e+11
B10: 22.2 | F10: (Menos) Pago plan de beneficios | J10: 4.834368748e+11
D11: 22.2.1 | F11: Traslados a otros regímenes | H11: 466282035.8
F13: TOTAL | J13: =+J9-J10 -> 5.144082164e+11
B16: Nota:
B18: Mediante oficio 426-SC-2017 con fecha del 22 de diciembre 2017, se informa a la Dirección Ejecutiva sobre el resultado del estudio de Auditoria informe N°624-30-SAFJP-2017, en el que se solicita: "4.10. Realizar los ajustes correspondientes al registro contable de los aportes patronal y estatal, una vez que Gestión Humana remita los reportes que sustentan las cuentas por cobrar al Poder Judicial, de aquellos periodos en que se utilizó un dato incorrecto, considerando que ya se efectuó un pago producto del cambio en dichos aportes (acuerdo del artículo XXV de sesión de Corte Plena No. 5-17 celebrada el 6 de marzo de 2017) y que a la fecha se utilizan porcentajes incorrectos", producto de dicho estudio se determina una cuenta por pagar al Poder Judicial de ¢219,712,457.14, la cual se revela como nota al estado financiero hasta que la Dirección Ejecutiva gire instrucciones superiores. Cabe destacar que mediante oficios 129-SC-2018 con fecha de 23 de marzo de 2018 y 188-SC-2018 con fecha de 10 de mayo 2018, se reitera la información. Medainte oficio N° 3339-DE-2018 del 17 de julio de 2018, la Dirección Ejecutiva solicita realizar la actualización de los registros contables de de acuerdo a lo indicado por Consejo Superior en sesión N° 56-18 celebrada el 21 de julio de 2018, artículo XXIII.

Sheet Nota 23
B2: Nota 23:
B4: CUENTAS DE ORDEN DEUDORAS Y ACREDORAS
B6: =+'Nota 22'!B5:J5 -> al 31 de Julio de 2018
B8: Concepto | D8: Monto
B9: Cuentas por cobrar por reconocimiento de tiempo servido en otras dependencias o instituciones públicas, de aquellos servidores en condición de propietarios que renunciaron al Poder Judicial. | D9: 289645067.5
